bitfinex/quotes_BTCUSD_20250604
["timestamp","ask_amount","ask_price","bid_price","bid_amount"]
[1749014304592,0.39712689,105430.0,105420.0,0.53426]
[1749014305009,0.41489397,105430.0,105420.0,0.53426]
[1749014305229,0.41489397,105430.0,105420.0,0.51856]
[1749014305230,0.39712689,105430.0,105420.0,0.51856]
[1749014305438,0.41342689,105430.0,105420.0,0.51856]
[1749014306094,0.0183,105430.0,105420.0,0.51856]
[1749014306312,0.41342689,105430.0,105420.0,0.51856]
[1749014306767,0.03606712,105430.0,105420.0,0.51856]
[1749014307012,0.41342689,105430.0,105420.0,0.51856]
[1749014307665,0.03606717,105430.0,105420.0,0.51856]
[1749014307904,0.002,105430.0,105420.0,0.55066]
[1749014308556,0.01976737,105430.0,105420.0,0.55066]
[1749014308773,0.002,105430.0,105420.0,0.55066]
[1749014310080,0.39712689,105430.0,105420.0,0.55066]
[1749014313356,0.39712689,105430.0,105420.0,0.53506]
[1749014315575,0.39712689,105430.0,105420.0,0.55156]
[1749014316016,0.39712689,105430.0,105420.0,0.53506]
[1749014318261,0.39712689,105430.0,105420.0,0.8313]
[1749014319747,0.41489305,105430.0,105420.0,0.8313]
[1749014319989,0.002,105430.0,105420.0,0.8313]
[1749014320218,0.01976616,105430.0,105420.0,0.8313]
[1749014320459,0.002,105430.0,105420.0,0.8313]
[1749014320700,0.39712689,105430.0,105420.0,0.81468]
[1749014320917,0.41242689,105430.0,105420.0,0.81468]
[1749014321596,0.4301923,105430.0,105420.0,0.81468]
[1749014321815,0.41242689,105430.0,105420.0,0.81468]
[1749014322042,0.43019235,105430.0,105420.0,0.90712]
[1749014322338,0.43019238,105430.0,105420.0,0.90712]
[1749014322617,0.41242689,105430.0,105420.0,0.90712]
[1749014323347,0.43019294,105430.0,105420.0,0.90712]
[1749014323576,0.41242689,105430.0,105420.0,0.90712]
[1749014324023,0.43019294,105430.0,105420.0,0.90712]
[1749014324234,0.41242689,105430.0,105420.0,0.90712]
[1749014324679,0.43019254,105430.0,105420.0,0.90712]
[1749014324885,0.43019244,105430.0,105420.0,0.90712]
[1749014325065,0.41242689,105430.0,105420.0,0.90712]
[1749014325299,0.41242689,105430.0,105420.0,0.51856]
[1749014325505,0.41242689,105430.0,105420.0,0.90712]
[1749014325777,0.43019253,105430.0,105420.0,0.90712]
[1749014325988,0.41242689,105430.0,105420.0,0.90712]
[1749014326406,0.43019251,105430.0,105420.0,0.90712]
[1749014326615,0.41242689,105430.0,105420.0,0.90712]
[1749014327854,0.0173,105430.0,105420.0,0.90712]
[1749014328069,0.002,105430.0,105420.0,0.92312]
[1749014328295,0.39712689,105430.0,105420.0,0.92312]
[1749014328911,0.41689298,105430.0,105420.0,0.92312]
[1749014329143,0.39912689,105430.0,105420.0,0.92312]
[1749014329820,0.41689297,105430.0,105420.0,0.92312]
[1749014330212,0.39912689,105430.0,105420.0,0.92312]
[1749014331784,0.41689293,105430.0,105420.0,0.92312]
[1749014332199,0.39912689,105430.0,105420.0,0.92312]
[1749014332835,0.41689257,105430.0,105420.0,0.92312]
[1749014333035,0.004,105430.0,105420.0,0.92312]
[1749014333243,0.39912689,105430.0,105420.0,0.92312]
[1749014333706,0.004,105430.0,105420.0,0.93922]
[1749014337752,0.004,105430.0,105420.0,1.43020119]
[1749014338381,0.004,105430.0,105420.0,1.0350743]
[1749014340365,0.004,105430.0,105420.0,1.3750743]
[1749014341723,0.004,105430.0,105420.0,1.8615743]
[1749014353371,0.004,105430.0,105420.0,2.25695985]
[1749014354691,0.004,105430.0,105420.0,2.1658454]
[1749014354894,0.004,105430.0,105420.0,2.1942984]
[1749014355504,0.002,105430.0,105420.0,2.1942984]
[1749014355913,0.002,105430.0,105420.0,2.22438034]
[1749014356124,0.03561993,105450.0,105420.0,2.19228034]
[1749014356326,0.03561993,105450.0,105440.0,0.3707]
[1749014356537,0.03561993,105450.0,105440.0,0.7591]
[1749014357568,0.03761993,105450.0,105440.0,0.76849535]
[1749014357797,0.03761993,105450.0,105440.0,1.25965285]
[1749014359251,0.03561993,105450.0,105440.0,1.25965285]
[1749014359464,0.03661993,105450.0,105440.0,1.25965285]
[1749014360089,0.03561993,105450.0,105440.0,1.25965285]
[1749014368223,0.03561993,105450.0,105440.0,1.74615285]
[1749014368852,0.03561993,105450.0,105440.0,1.65379285]
[1749014369479,0.03561993,105450.0,105440.0,1.25848965]
[1749014369693,0.03561993,105450.0,105440.0,1.65379285]
[1749014370111,0.03561993,105450.0,105440.0,2.26455285]
[1749014375927,0.03561993,105450.0,105440.0,1.74615285]
[1749014377063,0.03561993,105450.0,105440.0,1.74715285]
[1749014377344,0.03561993,105450.0,105440.0,2.14224035]
[1749014377930,0.03561993,105450.0,105440.0,2.04988035]
[1749014378249,0.03561993,105450.0,105440.0,2.05088035]
[1749014379956,0.03561993,105450.0,105440.0,2.66164035]
[1749014380160,0.03561993,105450.0,105440.0,2.17514035]
[1749014382026,0.02080993,105450.0,105440.0,2.17514035]
[1749014384361,0.02080993,105450.0,105440.0,1.90230035]
[1749014385161,0.02080993,105450.0,105440.0,0.86610965]
[1749014385300,0.02080993,105450.0,105440.0,1.65650035]
[1749014385998,0.02080993,105450.0,105440.0,1.747805]
[1749014386434,0.02080993,105450.0,105440.0,1.640345]
[1749014389065,0.02080993,105450.0,105440.0,0.94934965]
[1749014389298,0.43180528,105450.0,105440.0,0.93374965]
[1749014389506,0.43180528,105450.0,105440.0,1.13369535]
[1749014389507,0.44820528,105450.0,105440.0,1.13369535]
[1749014389918,0.44820528,105450.0,105440.0,1.74437535]
[1749014390611,0.03660993,105450.0,105440.0,1.74437535]
[1749014391820,0.03660993,105450.0,105440.0,1.25787535]
[1749014393692,0.02080993,105450.0,105440.0,1.25787535]
[1749014393895,0.02080993,105450.0,105440.0,1.765525]
[1749014394056,0.02080993,105450.0,105440.0,1.781825]
[1749014395370,0.02080993,105450.0,105440.0,2.17702035]
[1749014395821,0.02080993,105450.0,105440.0,1.781825]
[1749014396263,0.02080993,105450.0,105440.0,2.66352035]
[1749014396779,0.02080993,105450.0,105440.0,2.39068035]
[1749014397260,0.02080993,105450.0,105440.0,1.60028965]
[1749014397496,0.02080993,105450.0,105440.0,1.99544878]
[1749014399782,0.02080993,105450.0,105440.0,1.74988878]
[1749014399994,0.02080993,105450.0,105440.0,2.26828878]
[1749014405468,0.02080993,105450.0,105440.0,1.99544878]
[1749014406220,0.02080993,105450.0,105440.0,1.60028965]
[1749014406434,0.02080993,105450.0,105440.0,1.99544878]
[1749014406657,0.02080993,105450.0,105440.0,1.50894878]
[1749014407352,0.02080993,105450.0,105440.0,1.26338878]
[1749014408783,0.02080993,105450.0,105440.0,0.46384965]
[1749014409031,0.02080993,105450.0,105440.0,1.15468878]
[1749014409258,0.02080993,105450.0,105440.0,0.85900878]
[1749014409497,0.02080993,105450.0,105440.0,1.15468878]
[1749014409836,0.02080993,105450.0,105440.0,1.03236965]
[1749014410076,0.02080993,105450.0,105440.0,1.37016965]
[1749014411311,0.02080993,105450.0,105440.0,1.09732965]
[1749014412623,0.02080993,105450.0,105440.0,1.58382965]
[1749014413110,0.02080993,105450.0,105440.0,1.33830965]
[1749014413347,0.02080993,105450.0,105440.0,0.95034965]
[1749014413584,0.03580993,105450.0,105440.0,1.22938965]
[1749014414031,0.03580993,105450.0,105440.0,0.74288965]
[1749014414970,0.02080993,105450.0,105440.0,0.74288965]
[1749014417145,0.03600993,105450.0,105440.0,0.74288965]
[1749014417807,0.03600993,105450.0,105440.0,0.44724965]
[1749014418017,0.03600993,105450.0,105440.0,0.74288965]
[1749014418880,0.02080993,105450.0,105440.0,0.75888965]
[1749014419936,0.02080993,105450.0,105440.0,1.36948965]
[1749014420805,0.02080993,105450.0,105440.0,1.78124878]
[1749014421519,0.02080993,105450.0,105440.0,1.76464878]
[1749014421947,0.02080993,105450.0,105440.0,1.36948965]
[1749014422407,0.02080993,105450.0,105440.0,1.76464878]
[1749014422626,0.02080993,105450.0,105440.0,1.78124878]
[1749014422849,0.02080993,105450.0,105440.0,1.80969678]
[1749014424630,0.02080993,105450.0,105440.0,1.53685678]
[1749014427275,0.02080993,105450.0,105440.0,1.80810069]
[1749014428166,0.02080993,105450.0,105440.0,1.77779678]
[1749014429321,0.02080993,105450.0,105440.0,1.68559678]
[1749014429979,0.02080993,105450.0,105440.0,2.29619678]
[1749014433265,0.02080993,105450.0,105440.0,1.77779678]
[1749014434434,0.02080993,105450.0,105440.0,1.48215678]
[1749014434750,0.02080993,105450.0,105440.0,1.77771678]
[1749014436487,0.02080993,105450.0,105440.0,1.68551678]
[1749014440113,0.02080993,105450.0,105440.0,2.29607678]
[1749014440813,0.02080993,105450.0,105440.0,1.71107678]
[1749014441034,0.02080993,105450.0,105440.0,2.00659678]
[1749014441256,0.03680993,105450.0,105440.0,0.68594965]
[1749014441495,0.03680993,105450.0,105440.0,0.98146965]
[1749014441757,0.03680993,105450.0,105440.0,1.32146965]
[1749014445224,0.03680993,105450.0,105440.0,0.83496965]
[1749014445909,0.03680993,105450.0,105440.0,0.53944965]
[1749014446136,0.05310993,105450.0,105440.0,0.83496965]
[1749014446372,0.03680993,105450.0,105440.0,0.83496965]
[1749014446610,0.02080993,105450.0,105440.0,1.26189789]
[1749014446880,0.02080993,105450.0,105440.0,1.24549789]
[1749014448071,0.02080993,105450.0,105440.0,1.46949789]
[1749014448512,0.02080993,105450.0,105440.0,1.07416965]
[1749014448723,0.02080993,105450.0,105440.0,1.46949789]
[1749014450021,0.02080993,105450.0,105440.0,2.08001789]
[1749014451115,0.02080993,105450.0,105440.0,2.56651789]
[1749014452200,0.02080993,105450.0,105440.0,2.59496389]
[1749014454158,0.02080993,105450.0,105440.0,2.07656389]
[1749014458113,0.02080993,105450.0,105440.0,1.98444389]
[1749014460060,0.02080993,105450.0,105440.0,2.59484389]
[1749014460506,0.02080993,105450.0,105440.0,2.32204389]
[1749014460715,0.02080993,105450.0,105440.0,2.07652389]
[1749014463994,0.02080993,105450.0,105440.0,1.98444389]
[1749014464204,0.02080993,105450.0,105440.0,2.0147478]
[1749014464630,0.02080993,105450.0,105440.0,1.98444389]
[1749014467225,0.02080993,105450.0,105440.0,1.58911565]
[1749014467535,0.02080993,105450.0,105440.0,1.98444389]
[1749014467879,0.02080993,105450.0,105440.0,1.58895565]
[1749014468093,0.02080993,105450.0,105440.0,1.98428389]
[1749014469442,0.02080993,105450.0,105440.0,2.37929621]
[1749014470128,0.02080993,105450.0,105440.0,2.98969621]
[1749014471783,0.00304621,105450.0,105440.0,2.98969621]
[1749014473153,0.00304621,105450.0,105440.0,2.73143706]
[1749014473387,0.00304621,105450.0,105440.0,2.76174097]
[1749014473891,0.00304621,105450.0,105440.0,3.16174097]
[1749014474344,0.00304621,105450.0,105440.0,2.82414097]
[1749014474567,0.00304621,105450.0,105440.0,3.21931125]
[1749014474796,0.00304621,105450.0,105440.0,2.82414097]
[1749014475276,0.00304621,105450.0,105440.0,2.4288898]
[1749014477528,0.00304621,105450.0,105440.0,2.39858589]
[1749014479290,0.00304621,105450.0,105440.0,5.37533428]
[1749014479514,0.00091282,105450.0,105440.0,5.41321088]
[1749014479772,0.00091282,105450.0,105440.0,3.3149941]
[1749014479977,0.00091282,105450.0,105440.0,4.22436888]
[1749014480222,0.00091282,105450.0,105440.0,4.22336888]
[1749014480449,0.00091282,105450.0,105440.0,4.22636888]
[1749014480672,0.00091282,105450.0,105440.0,4.22536888]
[1749014480896,0.00091282,105450.0,105440.0,4.22736888]
[1749014481106,0.00091282,105450.0,105440.0,4.27736888]
[1749014482626,0.00091282,105450.0,105440.0,3.75904888]
[1749014483983,0.00091282,105450.0,105440.0,3.75892888]
[1749014485985,0.00091282,105450.0,105440.0,3.66692888]
[1749014487141,0.00091282,105450.0,105440.0,2.8767501]
[1749014487384,0.00091282,105450.0,105440.0,3.66692888]
[1749014488990,0.03286091,105480.0,105470.0,0.34]
[1749014489215,0.03334213,105480.0,105470.0,1.31744369]
[1749014489651,0.04954213,105480.0,105470.0,1.31744369]
[1749014490092,0.04954213,105480.0,105470.0,1.92768369]
[1749014490306,0.05154213,105480.0,105470.0,1.92768369]
[1749014490563,0.05354213,105480.0,105470.0,1.92768369]
[1749014490813,0.05354213,105480.0,105470.0,1.4405943]
[1749014491043,0.44863152,105480.0,105470.0,1.00474]
[1749014491274,0.44863152,105480.0,105470.0,0.51824]
[1749014491504,0.44963152,105480.0,105470.0,0.90544]
[1749014491725,0.44763152,105480.0,105470.0,0.90544]
[1749014491943,0.44563152,105480.0,105470.0,0.90544]
[1749014492172,0.44663152,105480.0,105470.0,0.90544]
[1749014492887,0.44763152,105480.0,105470.0,0.90544]
[1749014493110,0.44963152,105480.0,105470.0,0.90544]
[1749014495558,0.05454213,105480.0,105470.0,0.90544]
[1749014495791,0.44963152,105480.0,105470.0,0.90544]
[1749014497553,0.44963152,105480.0,105470.0,0.61024]
[1749014497791,0.44963152,105480.0,105470.0,0.9054]
[1749014503025,0.94057521,105480.0,105470.0,0.51824]
[1749014503240,0.94057521,105480.0,105470.0,0.9054]
[1749014503454,0.54548582,105480.0,105470.0,0.9054]
[1749014503888,0.54548582,105480.0,105470.0,0.61024]
[1749014504103,0.54548582,105480.0,105470.0,0.9054]
[1749014505436,0.56324683,105480.0,105470.0,0.9054]
[1749014505713,0.56324682,105480.0,105470.0,0.9054]
[1749014505940,0.54548582,105480.0,105470.0,0.9054]
[1749014507273,0.56324683,105480.0,105470.0,0.9054]
[1749014507473,0.54548582,105480.0,105470.0,0.9054]
[1749014508603,0.56324683,105480.0,105470.0,0.9054]
[1749014510361,0.56324683,105480.0,105470.0,0.90536]
[1749014511215,0.95869288,105480.0,105470.0,0.90536]
[1749014511677,0.976454,105480.0,105470.0,0.90536]
[1749014511898,0.95869288,105480.0,105470.0,0.90536]
[1749014512120,0.976454,105480.0,105470.0,0.90536]
[1749014512341,0.95869288,105480.0,105470.0,0.90536]
[1749014513119,0.976454,105480.0,105470.0,0.90536]
[1749014513413,0.95869288,105480.0,105470.0,0.90536]
[1749014513866,0.976454,105480.0,105470.0,0.90536]
[1749014514094,0.95869288,105480.0,105470.0,0.90536]
[1749014514547,0.16815744,105480.0,105470.0,0.90536]
[1749014514778,0.95869288,105480.0,105470.0,0.90536]
[1749014515474,0.976454,105480.0,105470.0,0.90536]
[1749014515697,0.95869288,105480.0,105470.0,0.90536]
[1749014517070,1.03869288,105480.0,105470.0,0.90536]
[1749014517300,0.976454,105480.0,105470.0,0.90536]
[1749014517782,0.95869288,105480.0,105470.0,0.90536]
[1749014518964,0.976454,105480.0,105470.0,0.90536]
[1749014519209,0.95869288,105480.0,105470.0,0.90536]
[1749014519444,0.976454,105480.0,105470.0,0.90536]
[1749014519912,0.976454,105480.0,105470.0,0.90532]
[1749014519913,0.95869288,105480.0,105470.0,0.90532]
[1749014520139,0.976454,105480.0,105470.0,0.90532]
[1749014520352,0.95869288,105480.0,105470.0,0.90532]
[1749014520805,0.976454,105480.0,105470.0,0.90532]
[1749014521044,0.95869288,105480.0,105470.0,0.90532]
[1749014522223,0.0322,105470.0,105450.0,0.10635202]
[1749014522452,0.0322,105470.0,105450.0,0.09075202]
[1749014522453,0.80683544,105460.0,105450.0,0.09075202]
[1749014522678,0.80683544,105460.0,105450.0,0.70107202]
[1749014522917,0.41156772,105460.0,105450.0,0.70107202]
[1749014523166,0.41156772,105460.0,105450.0,0.68626096]
[1749014523394,0.41156772,105460.0,105450.0,0.98134096]
[1749014523866,0.82253544,105460.0,105450.0,0.5184]
[1749014524145,1.66819831,105460.0,105450.0,0.61032]
[1749014524380,1.70573992,105460.0,105450.0,0.9054]
[1749014524860,1.30138759,105460.0,105450.0,0.9054]
[1749014525077,1.32823072,105460.0,105450.0,0.9054]
[1749014525299,1.31246428,105460.0,105450.0,0.9054]
[1749014525537,1.39589881,105460.0,105450.0,0.9054]
[1749014525980,1.79116653,105460.0,105450.0,0.9054]
[1749014526233,1.40597065,105460.0,105450.0,0.9054]
[1749014526474,1.39689881,105460.0,105450.0,0.9054]
[1749014526982,1.47689881,105460.0,105450.0,0.9054]
[1749014527243,1.51505337,105460.0,105450.0,0.9054]
[1749014527471,1.13777198,105460.0,105450.0,0.9054]
[1749014527694,1.51549277,105460.0,105450.0,0.9054]
[1749014527915,1.53325942,105460.0,105450.0,0.9054]
[1749014528147,1.51549277,105460.0,105450.0,0.9054]
[1749014528570,1.42298155,105460.0,105450.0,0.9054]
[1749014529119,1.44074818,105460.0,105450.0,0.9054]
[1749014529342,1.44074824,105460.0,105450.0,0.9054]
[1749014529568,1.42298155,105460.0,105450.0,0.9054]
[1749014529791,1.44074819,105460.0,105450.0,0.9054]
[1749014530027,1.51460706,105460.0,105450.0,0.9054]
[1749014530242,1.42298155,105460.0,105450.0,0.5184]
[1749014530472,1.42298155,105460.0,105450.0,0.9054]
[1749014530679,1.44074822,105460.0,105450.0,0.9054]
[1749014530928,1.44074824,105460.0,105450.0,0.9054]
[1749014531226,0.63200671,105460.0,105450.0,0.9054]
[1749014531491,1.42298155,105460.0,105450.0,0.9054]
[1749014532176,0.72451793,105460.0,105450.0,0.9054]
[1749014532402,0.0154,105440.0,105430.0,0.01481531]
[1749014532623,0.50674172,105440.0,105430.0,0.09192]
[1749014532854,0.50674172,105440.0,105430.0,0.10673545]
[1749014533534,0.50674172,105440.0,105430.0,0.10873545]
[1749014533809,0.50678981,105440.0,105430.0,0.40381545]
[1749014534034,0.50678981,105440.0,105430.0,0.01681545]
[1749014534257,0.52455736,105440.0,105430.0,0.09592]
[1749014534477,0.50678981,105440.0,105430.0,0.391]
[1749014534699,0.52328981,105440.0,105430.0,0.391]
[1749014534891,0.52328981,105440.0,105430.0,0.389]
[1749014535242,0.54105748,105440.0,105430.0,0.389]
[1749014535463,0.52328981,105440.0,105430.0,0.389]
[1749014535687,0.52328981,105440.0,105430.0,0.387]
[1749014536357,0.52328981,105440.0,105430.0,0.388]
[1749014536622,0.52328981,105440.0,105430.0,0.001]
[1749014536833,0.98747329,105440.0,105430.0,0.09284]
[1749014537054,0.99817238,105440.0,105430.0,0.001]
[1749014537282,0.99817238,105440.0,105430.0,0.38796]
[1749014537539,0.98747319,105440.0,105430.0,0.38696]
[1749014537767,0.96970838,105440.0,105430.0,0.38696]
[1749014538007,0.96970838,105440.0,105410.0,0.09154096]
[1749014538008,0.98747297,105440.0,105410.0,0.09154096]
[1749014538248,0.79097484,105420.0,105410.0,0.09154096]
[1749014538497,0.79097484,105420.0,105410.0,0.47850096]
[1749014538498,0.90459315,105420.0,105410.0,0.47850096]
[1749014538761,0.9223568,105420.0,105410.0,0.47850096]
[1749014538964,0.11361831,105420.0,105410.0,0.47850096]
[1749014539191,0.50910573,105420.0,105410.0,0.47850096]
[1749014539471,0.51848956,105420.0,105410.0,0.10744]
[1749014539710,0.94467698,105420.0,105400.0,0.0151]
[1749014539939,0.94467698,105420.0,105410.0,0.90552]
[1749014539940,0.54918956,105420.0,105410.0,0.90552]
[1749014540164,0.94567698,105420.0,105410.0,0.90552]
[1749014541287,0.94567698,105420.0,105410.0,0.6104]
[1749014541529,0.96021783,105420.0,105410.0,0.6104]
[1749014541755,0.96021783,105420.0,105410.0,0.90572]
[1749014541984,0.97797928,105420.0,105410.0,0.6104]
[1749014542213,0.96021783,105420.0,105410.0,0.90572]
[1749014542439,1.30021783,105420.0,105410.0,0.6104]
[1749014542663,1.3856835,105420.0,105410.0,0.6104]
[1749014542886,1.3856835,105420.0,105410.0,0.90576]
[1749014543112,1.3856835,105420.0,105410.0,0.51856]
[1749014543113,1.30121783,105420.0,105410.0,0.51856]
[1749014543341,1.36646591,105420.0,105410.0,0.09188]
[1749014543582,1.29921783,105420.0,105410.0,0.09188]
[1749014544225,1.38721783,105420.0,105410.0,0.09188]
[1749014544676,1.40497884,105420.0,105410.0,0.38728]
[1749014544890,1.38721783,105420.0,105410.0,0.38728]
[1749014545347,0.59624299,105420.0,105410.0,0.38728]
[1749014545592,1.4049788,105420.0,105410.0,0.38728]
[1749014545821,1.4049788,105420.0,105410.0,0.09188]
[1749014545822,1.40497881,105420.0,105410.0,0.09188]
[1749014546036,1.38721783,105420.0,105410.0,0.38728]
[1749014547140,1.40497761,105420.0,105410.0,0.38728]
[1749014547363,1.38721783,105420.0,105410.0,0.38728]
[1749014547583,1.4049776,105420.0,105410.0,0.38728]
[1749014547802,1.38721783,105420.0,105410.0,0.38728]
[1749014548488,1.42398843,105420.0,105410.0,0.09188]
[1749014548708,1.42398843,105420.0,105410.0,0.38708]
[1749014548709,1.44840789,105420.0,105410.0,0.38708]
[1749014548938,1.48916219,105420.0,105410.0,0.38708]
[1749014549624,0.63301359,105420.0,105410.0,0.38708]
[1749014549851,0.02954085,105410.0,105390.0,0.02992116]
[1749014550075,0.02954085,105410.0,105400.0,0.9058]
[1749014550331,0.12539515,105410.0,105400.0,0.9058]
[1749014550983,0.12539515,105410.0,105400.0,0.61056]
[1749014551226,0.12639515,105410.0,105400.0,0.90596]
[1749014551508,0.52088257,105410.0,105400.0,0.90596]
[1749014551729,0.52288257,105410.0,105400.0,0.90596]
[1749014552207,0.54164235,105410.0,105400.0,0.90596]
[1749014552433,0.52388257,105410.0,105400.0,0.36488]
[1749014552651,0.55624234,105410.0,105400.0,0.36488]
[1749014552866,0.53848257,105410.0,105400.0,0.36488]
[1749014553092,0.54148257,105410.0,105400.0,0.09188]
[1749014553769,0.54148257,105410.0,105400.0,0.38736]
[1749014554663,0.55924141,105410.0,105400.0,0.38736]
[1749014554890,0.54148257,105410.0,105400.0,0.38736]
[1749014555709,0.55924142,105410.0,105400.0,0.38736]
[1749014555909,0.54148257,105410.0,105400.0,0.38736]
[1749014556322,0.55924145,105410.0,105400.0,0.38736]
[1749014556546,0.54148257,105410.0,105400.0,0.38736]
[1749014556768,0.52588257,105410.0,105400.0,0.38736]
[1749014556991,0.54364145,105410.0,105400.0,0.38736]
[1749014557435,0.52588257,105410.0,105400.0,0.38736]
[1749014558054,0.51088257,105410.0,105400.0,0.38736]
[1749014558666,0.52864156,105410.0,105400.0,0.38736]
[1749014558874,0.51088257,105410.0,105400.0,0.38736]
[1749014559983,0.51088257,105410.0,105400.0,0.90612]
[1749014564032,0.51088257,105410.0,105400.0,0.93862]
[1749014564033,0.49634172,105410.0,105400.0,0.93862]
[1749014565385,0.1008543,105410.0,105400.0,0.93862]
[1749014565602,0.005,105410.0,105400.0,0.93862]
[1749014571971,0.40048742,105410.0,105400.0,0.64314]
[1749014572181,0.40048742,105410.0,105400.0,0.93834]
[1749014580343,0.005,105410.0,105400.0,0.93834]
[1749014580573,0.005,105410.0,105400.0,1.0341943]
[1749014581270,0.002,105410.0,105400.0,1.0341943]
[1749014581542,0.003,105410.0,105400.0,1.0341943]
[1749014582059,0.002,105410.0,105400.0,1.0341943]
[1749014582330,0.002,105410.0,105400.0,1.0351943]
[1749014582578,0.01776401,105420.0,105400.0,1.0026943]
[1749014582795,0.01776401,105420.0,105410.0,0.03447135]
[1749014583694,0.41325143,105420.0,105410.0,0.41914]
[1749014584630,0.41425143,105420.0,105410.0,0.41914]
[1749014584843,0.41525143,105420.0,105410.0,0.41914]
[1749014586236,0.41525143,105420.0,105410.0,0.0321]
[1749014586475,0.41525143,105420.0,105410.0,0.38704]
[1749014586957,0.45837657,105420.0,105400.0,0.55126]
[1749014587191,0.03536401,105420.0,105410.0,0.38704]
[1749014587414,0.41525143,105420.0,105410.0,0.38704]
[1749014588126,0.01976401,105420.0,105410.0,0.38704]
[1749014588360,0.41425143,105420.0,105410.0,0.38704]
[1749014589845,0.41425143,105420.0,105410.0,0.09188]
[1749014590106,0.05056401,105420.0,105410.0,0.3878]
[1749014590339,0.05156401,105420.0,105410.0,0.3878]
[1749014590588,0.44705143,105420.0,105410.0,0.3878]
[1749014590830,0.43045143,105420.0,105410.0,0.3878]
[1749014591098,0.41525143,105420.0,105410.0,0.3878]
[1749014592417,0.41525143,105420.0,105410.0,0.63348]
[1749014592652,0.01976401,105420.0,105410.0,0.63348]
[1749014592898,0.41525143,105420.0,105410.0,0.63348]
[1749014597922,0.41525143,105420.0,105410.0,0.33756]
[1749014598155,0.41525143,105420.0,105410.0,0.63436]
[1749014598383,0.41525143,105420.0,105410.0,0.33756]
[1749014598617,0.84313885,105420.0,105410.0,0.33756]
[1749014598840,0.05216401,105420.0,105410.0,0.63432]
[1749014599080,0.06992601,105420.0,105410.0,0.63432]
[1749014599298,0.84313885,105420.0,105410.0,0.63432]
[1749014599531,0.44765143,105420.0,105410.0,0.63432]
[1749014599754,0.41525143,105420.0,105410.0,0.63432]
[1749014602694,0.037526,105420.0,105410.0,0.63432]
[1749014602915,0.43301342,105420.0,105410.0,0.63432]
[1749014603131,0.41525143,105420.0,105410.0,0.63432]
[1749014603584,0.43301342,105420.0,105410.0,0.63432]
[1749014603812,0.41525143,105420.0,105410.0,0.63432]
[1749014604281,0.43301342,105420.0,105410.0,0.63432]
[1749014604778,0.44871342,105420.0,105410.0,0.63432]
[1749014605011,0.95555514,105420.0,105410.0,0.33756]
[1749014605238,0.97331654,105420.0,105410.0,0.636]
[1749014605496,0.1645803,105420.0,105410.0,0.636]
[1749014605729,0.97331642,105420.0,105410.0,0.636]
[1749014606189,0.95555514,105420.0,105410.0,0.636]
[1749014606417,0.97331642,105420.0,105410.0,0.636]
[1749014606647,0.95555514,105420.0,105410.0,0.909]
[1749014607104,0.97331642,105420.0,105410.0,0.909]
[1749014607340,0.95555514,105420.0,105410.0,0.90944]
[1749014608271,0.1490803,105420.0,105410.0,0.90944]
[1749014608511,0.95781659,105420.0,105410.0,0.90944]
[1749014608740,0.94005514,105420.0,105410.0,0.90944]
[1749014609231,0.95781733,105420.0,105410.0,0.90944]
[1749014609474,0.95781728,105420.0,105410.0,0.90944]
[1749014609712,0.95595514,105420.0,105410.0,0.90944]
[1749014610387,0.97371747,105420.0,105410.0,0.90968]
[1749014610609,0.95595514,105420.0,105410.0,0.90968]
[1749014611089,0.94005514,105420.0,105410.0,0.90968]
[1749014611317,0.92435514,105420.0,105410.0,0.90968]
[1749014612020,0.52886772,105420.0,105410.0,0.90968]
[1749014612257,0.1333803,105420.0,105410.0,0.90968]
[1749014612477,0.52886772,105420.0,105410.0,0.94178]
[1749014613625,0.54660627,105420.0,105410.0,0.94178]
[1749014613841,0.52886772,105420.0,105410.0,0.94178]
[1749014614749,0.52886772,105420.0,105410.0,0.92558]
[1749014614978,0.54660629,105420.0,105410.0,0.92558]
[1749014615175,0.52886772,105420.0,105410.0,0.92558]
[1749014617115,0.52886772,105420.0,105410.0,0.90968]
[1749014617340,0.54660619,105420.0,105410.0,0.90968]
[1749014617560,0.15111877,105420.0,105410.0,0.90968]
[1749014617782,0.52886772,105420.0,105410.0,0.90968]
[1749014618216,0.92435514,105420.0,105410.0,0.90968]
[1749014618428,0.52886772,105420.0,105410.0,0.90932]
[1749014618647,0.54660611,105420.0,105410.0,0.90932]
[1749014619084,0.52886772,105420.0,105410.0,0.90932]
[1749014620201,0.54660611,105420.0,105410.0,0.90932]
[1749014620402,0.52886772,105420.0,105410.0,0.90932]
[1749014621034,0.54660639,105420.0,105410.0,0.90932]
[1749014621237,1.01326405,105420.0,105410.0,0.91036]
[1749014621451,1.01326405,105420.0,105410.0,0.61148]
[1749014621669,1.01326405,105420.0,105410.0,0.91036]
[1749014621670,0.95545514,105420.0,105410.0,0.91036]
[1749014621892,0.97319334,105420.0,105410.0,0.91036]
[1749014622333,0.95545514,105420.0,105410.0,0.91036]
[1749014622783,0.9576935,105420.0,105410.0,0.91036]
[1749014623010,0.93995514,105420.0,105410.0,0.91036]
[1749014623459,0.92435514,105420.0,105410.0,0.91036]
[1749014624556,0.94209358,105420.0,105410.0,0.91036]
[1749014624775,0.92435514,105420.0,105410.0,0.91036]
[1749014625232,0.92476366,105420.0,105410.0,0.91036]
[1749014628521,0.94252646,105420.0,105410.0,0.91036]
[1749014628958,0.92476366,105420.0,105410.0,0.91036]
[1749014630263,0.94252918,105420.0,105410.0,0.91036]
[1749014630484,0.92476366,105420.0,105410.0,0.91036]
[1749014631134,0.94253032,105420.0,105410.0,0.91036]
[1749014631358,0.92476366,105420.0,105410.0,0.91036]
[1749014633187,0.99040408,105420.0,105410.0,0.91036]
[1749014633407,1.02593731,105420.0,105410.0,0.91036]
[1749014633633,1.00817078,105420.0,105410.0,0.91036]
[1749014633880,1.00817078,105420.0,105410.0,0.61148]
[1749014634112,1.03897078,105420.0,105410.0,0.90952]
[1749014634331,1.03898617,105420.0,105410.0,0.90952]
[1749014635036,1.05675207,105420.0,105410.0,0.90952]
[1749014635242,1.03898617,105420.0,105410.0,0.90952]
[1749014635937,0.32760281,105420.0,105410.0,0.90952]
[1749014636161,1.51467785,105420.0,105410.0,0.61148]
[1749014636399,1.09537984,105420.0,105410.0,0.90936]
[1749014636841,1.06261956,105420.0,105410.0,0.90936]
[1749014637286,1.08038481,105420.0,105410.0,0.90936]
[1749014637506,1.06261956,105420.0,105410.0,0.90936]